bitfinex-derivatives/quotes_ETHF0:USTF0_20251006
["timestamp","ask_amount","ask_price","bid_price","bid_amount"]
[1759746727228,0.4298,4565.2,4565.1,1.15848719]
[1759746727928,0.2209,4565.2,4565.1,1.15848719]
[1759746729028,0.4399,4565.4,4565.3,0.82562]
[1759746729328,1.2344,4565.6,4565.5,0.5207]
[1759746729530,1.2344,4565.6,4565.5,4.4903]
[1759746729736,2.0015,4565.6,4565.5,1.2825]
[1759746730232,2.0015,4565.6,4565.5,45.2903]
[1759746730433,0.4298,4565.6,4565.5,45.2903]
[1759746731532,0.7671,4565.6,4565.5,44.8962]
[1759746731827,0.7671,4565.6,4565.5,40.8]
[1759746732029,0.7671,4565.6,4565.1,0.00255719]
[1759746732030,0.7671,4565.2,4565.1,0.00255719]
[1759746732334,0.9861,4565.2,4565.1,0.39668719]
[1759746732532,0.9861,4565.2,4565.1,41.19668719]
[1759746732724,0.9861,4565.2,4565.1,41.52698719]
[1759746733035,0.2209,4565.6,4565.5,1.2825]
[1759746733233,0.4399,4565.6,4565.5,1.2825]
[1759746733733,0.2209,4565.9,4565.8,0.82557]
[1759746733935,0.4399,4565.9,4565.8,1.15587]
[1759746734937,0.6488,4565.9,4565.8,1.15587]
[1759746735131,0.9861,4565.9,4565.8,1.15587]
[1759746735331,0.9861,4565.9,4565.8,0.72437]
[1759746736129,0.9861,4565.9,4565.8,0.95057]
[1759746737330,1.47914149,4565.9,4565.8,0.95057]
[1759746738036,0.9861,4565.9,4565.8,0.95057]
[1759746738235,1.47912172,4565.9,4565.8,0.95057]
[1759746738439,1.47912172,4565.9,4565.8,0.5565]
[1759746738637,0.9861,4565.9,4565.8,0.5565]
[1759746739433,1.47908458,4565.9,4565.8,0.5565]
[1759746740340,1.47908458,4565.9,4565.8,0.95057]
[1759746740541,1.47908458,4565.9,4565.8,0.39407]
[1759746741935,1.47908458,4565.9,4565.8,0.71107]
[1759746742140,1.47908458,4565.9,4565.8,0.317]
[1759746742340,1.47908458,4565.9,4565.7,0.39408]
[1759746742530,1.25528458,4565.8,4565.7,0.93498]
[1759746744448,1.25448458,4565.8,4565.7,0.93498]
[1759746745946,0.7623,4565.8,4565.7,0.93498]
[1759746749350,0.4472,4565.8,4565.7,1.14218]
[1759746749543,0.2207,4565.8,4565.7,1.14218]
[1759746751747,0.219,4565.9,4565.8,0.7481]
[1759746752840,0.952,4566.2,4565.8,0.7481]
[1759746753046,1.1727,4566.2,4566.1,0.7481]
[1759746753249,1.6182,4566.2,4566.1,0.7481]
[1759746753450,3.57529119,4566.2,4566.1,0.7481]
[1759746753949,3.67139119,4566.2,4566.1,0.7481]
[1759746754144,3.89039119,4566.2,4566.1,0.7481]
[1759746755055,3.67139119,4566.2,4566.1,0.7481]
[1759746755250,3.89039119,4566.2,4566.1,0.7481]
[1759746756348,3.57529119,4566.2,4566.1,0.7481]
[1759746756545,1.16043,4566.2,4566.1,0.7481]
[1759746756746,0.93393,4566.2,4566.1,0.7481]
[1759746757945,1.45543,4566.2,4566.1,0.7481]
[1759746759749,0.5215,4565.7,4565.6,0.3279]
[1759746759953,1.44913,4565.7,4565.6,0.3279]
[1759746760155,4.3344524,4565.7,4565.6,0.3279]
[1759746760849,1.13943,4565.7,4565.6,0.7642]
[1759746761747,0.92043,4565.7,4565.6,0.7642]
[1759746761953,1.13943,4565.7,4565.6,0.7642]
[1759746762453,1.44913,4565.7,4565.6,0.7642]
[1759746762655,1.13943,4565.7,4565.6,0.7642]
[1759746763753,1.13943,4565.7,4565.6,0.2218]
[1759746763953,0.71323,4565.7,4565.6,0.7642]
[1759746764152,0.04059,4565.7,4565.6,0.7642]
[1759746764352,1.1915,4566.4,4566.3,0.7642]
[1759746764353,1.4059,4566.4,4566.3,0.7642]
[1759746764554,1.6249,4566.4,4566.3,0.7642]
[1759746764758,0.6452,4566.4,4566.3,0.7642]
[1759746764958,0.9549,4566.4,4566.3,0.7642]
[1759746765459,0.6452,4566.4,4566.3,0.7642]
[1759746766648,0.9549,4566.4,4566.3,0.7642]
[1759746766963,0.6452,4566.4,4566.3,0.7642]
[1759746768351,0.4334,4566.4,4566.3,0.7642]
[1759746770858,0.219,4566.4,4566.3,0.7642]
[1759746771159,1.3322,4566.6,4566.5,0.8557]
[1759746771464,1.5512,4566.6,4566.5,44.8635]
[1759746779061,1.00858,4566.6,4566.5,44.8635]
[1759746779367,0.219,4566.6,4566.5,44.8635]
[1759746780569,0.219,4566.6,4566.5,49.8635]
[1759746780768,0.3295,4567.9,4566.5,49.8635]
[1759746780769,0.1056,4568.5,4566.6,0.3075]
[1759746780962,0.1056,4568.5,4568.2,0.3067]
[1759746780963,1.17947599,4568.5,4568.2,0.3067]
[1759746781164,0.5497,4568.8,4568.7,0.4223]
[1759746781376,1.04064459,4568.8,4568.7,0.4223]
[1759746781569,1.04064459,4568.8,4568.7,41.2223]
[1759746781863,0.2742,4569.0,4568.9,0.4223]
[1759746782071,0.00166889,4569.0,4568.9,0.81807709]
[1759746782675,0.00166889,4569.0,4568.9,41.61807709]
[1759746783073,0.00166889,4569.0,4568.9,41.92557709]
[1759746783767,0.3295,4570.0,4569.9,1.12352]
[1759746783962,0.5497,4570.3,4570.2,0.81599]
[1759746784168,0.5497,4570.3,4570.2,1.12349]
[1759746784668,0.76999038,4570.3,4570.2,41.5298]
[1759746784869,0.76999038,4570.3,4570.2,41.2223]
[1759746786967,0.76999038,4570.3,4570.2,41.5298]
[1759746790273,0.1282,4570.0,4569.6,0.39374]
[1759746790470,0.5485,4569.9,4569.8,0.39373]
[1759746790675,0.5485,4569.9,4569.8,41.92353]
[1759746792177,0.219,4569.9,4569.8,41.92353]
[1759746792576,0.5485,4569.9,4569.8,41.5298]
[1759746794375,0.5485,4569.9,4569.8,41.2223]
[1759746794567,0.5485,4569.9,4569.5,3.5153]
[1759746794568,0.2202,4569.6,4569.5,3.2078]
[1759746794767,0.9865,4569.6,4569.5,3.4196]
[1759746795173,0.9865,4569.6,4569.5,44.7376]
[1759746795679,0.219,4569.6,4569.5,44.8635]
[1759746795877,0.33199038,4570.3,4570.2,0.7298]
[1759746796075,0.55099038,4570.3,4570.2,0.7298]
[1759746796380,0.77119038,4570.3,4570.2,0.7298]
[1759746798677,0.55099038,4570.3,4570.2,0.7298]
[1759746799476,0.22149038,4570.3,4570.2,0.7298]
[1759746800588,0.77099038,4570.3,4570.2,0.7298]
[1759746800884,0.3361,4570.2,4570.0,3.2078]
[1759746801090,0.7596,4570.1,4570.0,3.4184]
[1759746801484,0.7596,4570.1,4570.0,0.2106]
[1759746802085,0.7596,4569.7,4569.6,0.2106]
[1759746802381,0.9786,4569.7,4569.6,0.2106]
[1759746805198,0.3361,4569.6,4569.5,44.0078]
[1759746806198,0.7596,4569.6,4569.5,3.2078]
[1759746807099,1.24871678,4569.6,4569.5,3.4184]
[1759746807890,1.24871678,4569.6,4569.5,3.6305]
[1759746809806,0.7596,4569.1,4569.0,0.2106]
[1759746809998,1.46771678,4569.1,4569.0,0.2106]
[1759746810893,1.86150678,4569.1,4568.9,0.00196709]
[1759746811100,1.37471678,4569.0,4568.9,0.00196709]
[1759746817407,1.37391678,4569.0,4568.9,0.75896709]
[1759746820407,1.37391678,4569.0,4568.9,0.44336709]
[1759746820803,1.37391678,4569.0,4568.9,0.75896709]
[1759746821003,0.82521678,4569.0,4568.9,0.75896709]
[1759746821311,0.48911678,4569.0,4568.9,0.75896709]
[1759746821709,0.219,4569.1,4569.0,0.3938]
[1759746822008,0.219,4569.1,4569.0,4.483]
[1759746822210,0.219,4569.1,4569.0,45.283]
[1759746826410,0.70946546,4569.1,4569.0,45.283]
[1759746828409,0.70946546,4569.1,4569.0,42.0752]
[1759746828614,0.70946546,4569.1,4569.0,45.283]
[1759746829217,0.219,4569.1,4569.0,45.283]
[1759746836420,0.5534,4569.1,4569.0,45.1586]
[1759746841120,0.219,4569.1,4569.0,45.2838]
[1759746842418,0.5534,4569.1,4569.0,45.1586]
[1759746843325,0.219,4569.1,4569.0,45.2838]
[1759746845823,0.5534,4569.1,4569.0,45.1586]
[1759746848230,0.219,4569.1,4569.0,45.2838]
[1759746848731,0.5534,4569.1,4569.0,45.2838]
[1759746850031,0.219,4569.1,4569.0,45.2838]
[1759746850730,0.5534,4569.1,4569.0,45.1586]
[1759746851127,0.5534,4569.1,4569.0,44.0078]
[1759746851333,1.2897,4569.0,4568.9,0.00196709]
[1759746851633,4.66296236,4569.0,4568.9,0.00196709]
[1759746852527,0.8959,4568.0,4567.9,3.2078]
[1759746852736,1.38736841,4568.0,4567.9,0.209]
[1759746853534,0.8959,4568.0,4567.9,0.21073248]
[1759746853724,0.7686,4568.0,4567.9,0.76123248]
[1759746853929,0.219,4568.1,4568.0,1.15338]
[1759746855323,0.7656,4568.1,4568.0,1.15338]
[1759746856135,0.9876,4568.1,4568.0,1.15338]
[1759746859837,0.1317,4568.0,4567.9,0.00253248]
[1759746860141,0.8758,4568.0,4567.9,0.00253248]
[1759746861832,0.5281,4568.0,4567.9,0.75813248]
[1759746862134,0.5281,4568.0,4567.9,3.96593248]
[1759746863039,0.7441,4568.0,4567.9,3.96593248]
[1759746863241,0.3111,4568.0,4567.9,3.96593248]
[1759746863437,0.5281,4568.0,4567.9,3.96593248]
[1759746864237,0.219,4568.1,4568.0,0.39388]
[1759746864443,0.7471,4568.1,4568.0,1.14948]
[1759746868645,0.217,4568.5,4568.4,0.7556]
[1759746868845,0.436,4568.5,4568.4,0.7556]
[1759746869146,1.0948,4568.5,4568.4,1.14945]
[1759746869340,1.0948,4568.5,4568.4,0.82125]
[1759746869542,1.0948,4568.5,4568.4,1.14945]
[1759746871046,0.7471,4568.5,4568.4,1.14945]
[1759746872044,0.7471,4568.5,4568.4,41.94945]
[1759746874845,0.8749,4568.5,4568.4,41.94945]
[1759746875341,0.8749,4568.5,4568.4,41.62125]
[1759746875938,0.8749,4568.5,4568.4,41.92725]
[1759746876142,1.36502226,4568.5,4568.4,41.92725]
[1759746877044,1.36502226,4568.5,4568.4,41.62125]
[1759746877245,1.36502226,4568.5,4568.4,41.92725]
[1759746879157,1.36502226,4568.5,4568.4,41.62125]
[1759746879347,0.4218,4568.1,4568.0,0.2217]
[1759746879648,0.4218,4568.1,4568.0,0.82698]
[1759746879649,1.25102226,4568.1,4568.0,0.82698]
[1759746880449,1.25102226,4568.1,4568.0,0.61558]
[1759746882346,1.25102226,4568.1,4568.0,4.34078]
[1759746882548,1.03912226,4568.1,4568.0,4.34078]
[1759746882856,1.25102226,4568.1,4568.0,4.34078]
[1759746883449,1.03912226,4568.1,4568.0,4.34078]
[1759746883650,0.49012226,4568.1,4568.0,4.46578]
[1759746883852,1.04007103,4568.4,4568.3,0.82696]
[1759746884056,1.04007103,4568.4,4568.3,1.13296]
[1759746884961,1.25197103,4568.4,4568.3,1.13296]
[1759746886260,0.49107103,4568.4,4568.3,1.13296]
[1759746886764,0.83017103,4568.4,4568.3,1.13296]
[1759746887269,0.49107103,4568.4,4568.3,1.13296]
[1759746887965,1.0248,4568.5,4568.4,0.7511]
[1759746888155,1.29694501,4568.5,4568.4,0.7511]
[1759746888354,1.51594501,4568.5,4568.4,0.7511]
[1759746888866,0.8058,4568.5,4568.4,0.7511]
[1759746889060,0.3246,4569.6,4569.5,0.7511]
[1759746889367,1.24529428,4569.6,4569.5,0.7511]
[1759746890158,1.24449428,4569.6,4569.5,0.7511]
[1759746890658,1.24449428,4569.6,4569.5,41.5511]
[1759746891263,1.03509428,4569.6,4569.5,41.5511]
[1759746893269,0.5439,4569.6,4569.5,41.5511]
[1759746895163,0.5439,4569.6,4569.5,41.0096]
[1759746895563,1.03418849,4569.6,4569.5,40.8]
[1759746895764,4.24198849,4569.6,4569.5,40.8]
[1759746896365,0.8804,4569.5,4569.4,0.39376]
[1759746896562,1.37068849,4569.5,4569.4,0.39376]
[1759746896965,0.4295,4569.2,4569.1,41.19378]
[1759746897270,1.46338849,4569.2,4569.1,0.60338]
[1759746900569,1.46338849,4569.2,4569.1,0.82808]
[1759746900762,1.46338849,4569.2,4569.1,1.14488]
[1759746902975,1.25398849,4569.2,4569.1,1.14488]
[1759746903275,0.5436,4569.2,4569.1,1.14488]
[1759746903678,0.7637,4569.2,4569.1,1.14488]
[1759746905570,0.219,4569.2,4569.1,1.14488]
[1759746910272,0.5436,4569.2,4569.1,1.14488]
[1759746910979,0.219,4569.2,4569.1,1.14488]
[1759746914184,0.5665,4570.0,4569.9,1.14482]
[1759746914379,1.27552033,4570.0,4569.9,1.14482]
[1759746914579,1.46312033,4570.0,4569.9,1.14482]
[1759746914878,1.58942033,4570.0,4569.9,1.14482]
[1759746915488,0.81462033,4570.0,4569.9,1.14482]
[1759746915782,1.58942033,4570.0,4569.9,1.14482]
[1759746916383,1.58942033,4570.0,4569.9,41.94482]
[1759746917581,1.46312033,4570.0,4569.9,41.94482]
[1759746917981,0.2232,4569.6,4569.5,3.2078]
[1759746918180,0.7424,4569.4,4569.3,0.17616116]
[1759746918387,1.45142033,4569.4,4569.3,0.17616116]
[1759746918593,1.45142033,4569.4,4569.3,41.19146116]
[1759746918780,1.45142033,4569.4,4569.3,41.0153]
[1759746919180,1.24752033,4569.4,4569.3,41.3271]
[1759746919496,0.70902033,4569.4,4569.3,0.7514]
[1759746919683,1.02432033,4569.4,4569.3,0.7514]
[1759746920492,1.24752033,4569.4,4569.3,0.7514]
[1759746920996,1.24752033,4569.4,4569.3,3.9592]
[1759746921179,0.80532033,4569.4,4569.3,3.9592]
[1759746921380,3.3e-07,4569.4,4569.3,8.9592]
[1759746921580,0.5561,4570.0,4569.9,1.14512]
[1759746921786,0.5561,4570.0,4569.9,45.15292]
[1759746921995,0.219,4570.0,4569.9,45.15292]
[1759746922687,0.219,4570.0,4569.9,50.15292]
[1759746924892,0.00249038,4570.3,4570.2,0.83329]
[1759746925084,0.00249038,4570.3,4570.2,1.14509]
[1759746925286,0.54099038,4570.3,4570.2,1.14509]
[1759746925486,0.74489038,4570.3,4570.2,0.39369]
[1759746925687,0.1281,4570.0,4569.9,44.40152]
[1759746925887,0.4434,4570.0,4569.9,44.40152]
[1759746926488,0.4434,4570.0,4569.9,44.40072]
[1759746927487,0.4434,4570.0,4569.9,44.71252]
[1759746930094,0.4434,4570.0,4569.9,44.40072]
[1759746930291,3.72423256,4570.0,4569.9,3.207]
[1759746930499,3.94323256,4570.0,4569.9,3.207]
[1759746933495,9.43061375,4570.0,4569.9,3.207]
[1759746937094,9.43061375,4570.0,4569.8,0.39372]
[1759746937302,1.24878119,4569.9,4569.8,0.39372]
[1759746937600,1.24878119,4569.9,4569.8,0.61622]
[1759746939803,0.48738119,4569.9,4569.8,4.36402]
[1759746940107,0.219,4569.9,4569.8,4.36402]
[1759746941096,0.532,4569.9,4569.8,4.36402]
[1759746941501,0.7543,4569.9,4569.8,4.36402]
[1759746941702,0.9804,4569.9,4569.8,4.04612]
[1759746942002,1.46783239,4569.9,4569.8,1.15622]
[1759746943501,1.46783239,4569.9,4569.8,4.36402]
[1759746944804,1.46783239,4569.9,4569.8,0.83832]
[1759746945405,1.46783239,4569.9,4569.8,1.15622]
[1759746948705,0.133,4569.5,4569.3,3.2078]
[1759746948903,0.133,4569.5,4569.2,0.39377]
[1759746948904,1.13733239,4569.4,4569.2,0.39377]
[1759746949102,0.91833239,4569.3,4569.2,0.39377]
[1759746949303,1.23033239,4569.3,4569.2,41.19377]
[1759746951508,1.23033239,4569.3,4569.2,41.50447]
[1759746952807,1.23033239,4569.3,4569.2,41.19377]
[1759746953012,1.23033239,4569.3,4569.2,40.8]
[1759746954214,0.91833239,4569.3,4569.2,0.217]
[1759746954714,1.23033239,4569.3,4569.2,0.217]
[1759746955217,0.7429,4569.2,4569.1,0.39379]
[1759746955404,1.23033239,4569.2,4569.1,0.39379]
[1759746955608,4.0704725,4569.2,4569.1,0.39379]
[1759746958510,0.39379,4569.1,4568.9,0.3938]
[1759746958716,1.13671,4568.9,4568.8,0.39381]
[1759746958905,0.7429,4568.6,4568.5,0.39383]
[1759746959111,0.7429,4568.1,4568.0,0.92158]
[1759746959311,0.9619,4568.1,4568.0,1.13668]
[1759746959615,0.219,4568.1,4568.0,42.06168]
[1759746963018,0.2182,4568.1,4568.0,42.06168]
[1759746968723,0.438,4568.8,4568.7,0.82592]
[1759746969026,0.438,4568.8,4568.7,1.13662]
[1759746969514,0.126,4568.8,4568.7,41.93662]
[1759746971126,0.0218,4569.1,4569.0,0.9492]
[1759746971325,0.0218,4569.1,4569.0,1.2599]
[1759746971826,0.01509852,4569.1,4569.0,42.0599]
[1759746972220,0.219,4569.6,4569.5,0.95185]
[1759746972421,0.219,4569.6,4569.5,1.26255]
[1759746973025,0.219,4569.6,4569.5,42.06255]
[1759746974520,0.5639,4570.0,4569.9,0.61071]
[1759746974721,1.26961258,4570.0,4569.9,0.61071]
[1759746975135,1.26961258,4570.0,4569.5,41.2367]
[1759746975136,0.7429,4569.6,4569.5,40.8]
[1759746975327,1.22961258,4569.6,4569.5,40.8]
[1759746976428,0.6604,4569.5,4569.4,0.39376]
[1759746976626,0.312,4569.4,4569.1,0.39379]
[1759746976828,0.7429,4569.2,4569.1,0.217]
[1759746977030,0.445,4569.0,4568.4,0.70455]
[1759746977228,0.8759,4568.5,4568.4,0.82595]
[1759746977828,0.8759,4568.5,4568.4,41.62595]
[1759746978832,0.5274,4568.5,4568.4,41.95545]
[1759746979932,0.219,4568.6,4568.5,0.8426]
[1759746980228,0.5609,4569.0,4568.9,0.4368]
[1759746980425,1.26676783,4569.0,4568.9,0.4368]
[1759746980731,1.60446783,4569.0,4568.9,0.4368]
[1759746981325,1.60446783,4569.0,4568.9,0.83061]
[1759746981733,1.60446783,4569.0,4568.9,0.61781]
[1759746982227,1.60446783,4569.0,4568.9,0.39381]
[1759746986038,0.7656,4568.8,4568.7,0.39382]
[1759746986443,0.4607,4568.5,4568.4,41.19385]
[1759746986647,0.6797,4568.5,4568.4,41.52335]
[1759746986833,0.5567,4568.5,4568.4,41.52335]
[1759746995149,1.58795353,4568.5,4568.4,0.224]
[1759746996949,1.58795353,4568.5,4568.4,0.5437]
[1759746999168,1.58795353,4568.5,4568.4,0.2232]
[1759747001153,1.1003,4568.5,4568.4,0.2232]
[1759747001354,1.58770639,4568.5,4568.4,0.2232]
[1759747001957,0.7586,4568.2,4568.1,0.2208]
[1759747002155,1.27768,4568.0,4567.9,0.00253248]
[1759747002356,1.27768,4568.0,4567.1,0.3197]
[1759747002357,0.7586,4567.7,4567.1,0.3197]
[1759747002656,0.72384,4567.3,4567.2,40.8]
[1759747002844,0.94284,4567.3,4567.2,40.8]
[1759747003448,7.4525099,4567.3,4567.2,0.00247643]
[1759747003655,0.7586,4566.6,4566.5,0.2208]
[1759747003950,0.2226,4566.2,4566.1,0.71374]
[1759747004150,0.9776,4566.2,4566.1,0.84064]
[1759747004351,0.9776,4566.2,4566.1,41.64064]
[1759747004550,0.9776,4566.2,4566.1,41.96034]
[1759747004859,0.97985502,4566.2,4566.1,41.96303042]
[1759747008159,0.77375502,4566.2,4566.1,41.96303042]
[1759747010551,0.77375502,4566.2,4566.1,41.56899042]
[1759747010750,0.77375502,4566.2,4566.1,41.24929042]
[1759747010958,0.77375502,4566.2,4566.1,41.58159042]
[1759747012557,0.77375502,4566.2,4566.1,41.02349042]
[1759747012754,4.2036617,4566.2,4566.1,0.00269042]
[1759747015659,4.2036617,4566.2,4566.1,0.22909042]
[1759747016353,3.8096217,4566.2,4566.1,0.76909042]
[1759747016660,3.5995217,4566.2,4566.1,0.76909042]
[1759747016967,3.8096217,4566.2,4566.1,0.76909042]
[1759747018052,3.8096217,4566.2,4566.1,0.43679042]
[1759747020265,3.8096217,4566.2,4566.1,0.76909042]
[1759747021265,3.8096217,4566.2,4566.1,0.43679042]
[1759747021454,7.0174217,4566.2,4566.1,0.00269042]
[1759747028564,7.50360443,4566.2,4566.1,0.00269042]
[1759747028769,7.50360443,4566.2,4565.1,0.3323]
[1759747028770,0.1246,4565.0,4564.9,3.2078]
[1759747028964,0.4201,4564.4,4564.3,0.3942]
[1759747029167,0.7533,4564.3,4564.2,0.2264]
[1759747029759,0.7533,4564.3,4564.2,0.22898615]
[1759747030269,0.7533,4564.3,4564.2,0.43668615]
[1759747030464,0.7533,4564.3,4564.2,0.76898615]
[1759747031374,0.7533,4564.3,4564.2,0.43668615]
[1759747033064,0.7533,4564.3,4564.2,0.76898615]
[1759747033269,0.3332,4564.3,4564.2,0.76898615]
[1759747033479,0.219,4564.4,4564.3,1.1606]
[1759747033968,0.5447,4565.0,4564.9,0.39415]
[1759747034172,0.429,4565.0,4564.9,1.16055]
[1759747034676,0.219,4565.0,4564.9,1.16055]
[1759747034860,0.7622,4565.0,4564.9,1.16055]
[1759747035064,1.0969,4565.0,4564.9,1.16055]
[1759747035369,1.0961,4565.0,4564.9,1.16055]
[1759747035965,1.0961,4565.0,4564.9,0.39415]
[1759747036268,1.0961,4565.0,4564.9,0.62055]
[1759747036662,0.9715,4565.0,4564.9,1.16055]
[1759747038358,0.7614,4565.0,4564.9,1.16055]
[1759747038559,3.2284,4565.4,4565.2,0.39412]
[1759747038560,0.3254,4565.3,4565.2,0.39412]
[1759747038762,0.5444,4565.3,4565.2,1.14522]
[1759747039066,0.5444,4565.3,4565.2,41.94522]
[1759747040372,0.219,4565.3,4565.2,41.94522]
[1759747041364,0.5431,4565.9,4565.4,0.98526]
[1759747041566,3.2078,4566.0,4565.8,0.7511]
[1759747041874,0.219,4565.9,4565.8,0.7511]
[1759747042074,0.5444,4565.9,4565.8,1.14517]
[1759747043377,0.7621,4565.9,4565.8,1.14517]
[1759747045688,0.9753,4565.9,4565.8,1.14517]
[1759747046078,1.13806546,4565.9,4565.1,0.3167]
[1759747046386,0.7563,4565.2,4565.1,1.14523]
[1759747046586,0.9753,4565.2,4565.1,0.82853]
[1759747046786,0.9753,4565.2,4565.1,0.60233]
[1759747046988,0.9753,4565.2,4565.1,0.2082]
[1759747048292,0.9753,4565.2,4565.1,0.7511]
[1759747048593,0.7621,4565.2,4565.1,0.7511]
[1759747051200,0.9753,4565.2,4565.1,0.2082]
[1759747054297,0.9753,4565.2,4565.0,0.39414]
[1759747054593,0.1291,4565.0,4564.5,0.3161]
[1759747054803,0.7255,4564.6,4564.5,0.92768]
[1759747055102,0.9445,4564.6,4564.5,1.14848]
[1759747055293,0.9445,4564.6,4564.5,0.83238]
[1759747055493,0.9445,4564.6,4564.5,41.94848]
[1759747057699,0.219,4564.6,4564.5,42.02778]
[1759747058697,0.5181,4565.4,4565.3,0.2174]
[1759747058905,1.43297222,4565.4,4565.3,0.2174]
[1759747059095,0.2115,4564.7,4564.6,0.3161]
[1759747059402,0.9445,4564.7,4564.6,1.14848]
[1759747060398,3.6385,4565.5,4565.4,0.39411]
[1759747060705,4.55760202,4565.5,4565.4,1.14841]
[1759747061100,4.43350202,4565.5,4565.4,1.14841]
[1759747061304,3.91540202,4565.5,4565.4,1.14841]
[1759747061604,4.43350202,4565.5,4565.4,1.14841]
[1759747061805,4.43350202,4565.5,4565.4,41.94841]
[1759747063003,1.22570202,4565.5,4565.4,41.94841]
[1759747064110,1.35480202,4565.5,4565.4,41.2382]
[1759747064309,1.35480202,4565.5,4565.4,41.5543]
[1759747064806,4.56260202,4565.5,4565.4,41.2382]
[1759747064998,1.35480202,4565.5,4565.4,41.0174]
[1759747065198,1.56220202,4565.5,4565.4,0.2174]
[1759747065605,1.56220202,4565.5,4565.4,0.4382]
[1759747067600,1.56220202,4565.5,4565.4,0.2174]
[1759747067808,1.64970202,4565.5,4565.1,0.39413]
[1759747068110,0.7815,4565.3,4565.2,0.39412]
[1759747069409,0.7815,4565.3,4565.2,0.61652]
[1759747070310,0.7815,4565.3,4565.2,1.14992]
[1759747071214,0.7815,4565.3,4565.2,0.61652]
[1759747071405,0.7815,4565.3,4565.2,0.39412]
[1759747072206,0.7815,4565.3,4565.2,0.61652]
[1759747076709,0.7815,4565.3,4565.2,0.61572]
[1759747077513,0.7815,4565.3,4565.2,0.82122]
[1759747078214,0.7815,4565.3,4565.2,1.14912]
[1759747080316,0.126,4565.0,4564.8,41.19416]
[1759747080509,0.4509,4564.3,4564.2,0.75838615]
[1759747080815,1.0005,4564.3,4564.2,1.15259615]
[1759747081114,1.0005,4564.3,4564.2,41.95259615]
[1759747081503,0.5496,4564.3,4564.2,41.95259615]
[1759747088517,0.219,4564.3,4564.2,41.95259615]
[1759747090321,0.3306,4564.7,4564.6,1.14998]
[1759747090508,0.5496,4564.7,4564.6,1.14998]
[1759747091814,0.7751,4564.7,4564.6,1.14998]
[1759747092127,1.0005,4564.7,4564.6,0.7558]
[1759747092917,1.0005,4564.7,4564.6,0.4279]
[1759747095127,1.0005,4564.7,4564.6,0.7558]
[1759747096425,1.0005,4564.7,4564.6,0.4279]
[1759747097326,1.0005,4564.7,4564.6,0.7558]
[1759747098926,1.0005,4564.7,4564.6,0.2224]
[1759747099121,0.3073,4564.4,4564.3,0.6091]
[1759747099327,0.9581,4564.4,4564.3,0.6091]
[1759747099829,0.9581,4564.4,4564.3,1.1421]
[1759747108338,0.219,4564.4,4564.3,1.1421]
[1759747108934,0.5263,4564.4,4564.3,1.1421]
[1759747109238,1.01445471,4564.4,4564.3,1.1421]
[1759747109632,1.24065471,4564.4,4564.3,1.1421]
[1759747111833,1.44625471,4564.4,4564.3,1.1421]
[1759747112035,1.44625471,4564.4,4564.3,0.6091]
[1759747112233,1.44625471,4564.4,4564.3,0.3942]
[1759747112629,0.3073,4564.3,4564.2,0.00258615]
[1759747112828,0.8631,4563.5,4563.4,3.2078]
[1759747113038,1.57006977,4563.5,4563.4,3.12655622]
[1759747113336,1.56926977,4563.5,4563.4,43.92655622]
[1759747113727,1.56926977,4563.5,4563.4,44.24668423]
[1759747114231,0.7525,4563.5,4563.4,44.24668423]
[1759747116633,0.5263,4563.5,4563.4,44.24668423]
[1759747116842,0.219,4563.5,4563.4,44.24668423]
[1759747122241,0.5165,4563.9,4563.8,0.77]
[1759747123240,0.5165,4563.9,4563.8,1.16425]
[1759747124745,0.3098,4563.9,4563.8,1.16425]
[1759747125846,0.3383,4564.0,4563.6,0.98566]
[1759747126136,0.6481,4564.0,4563.9,0.39424]
[1759747126535,0.8737,4564.0,4563.9,0.39424]
[1759747126736,0.8737,4564.0,4563.9,41.19424]
[1759747128238,0.7528,4563.9,4563.8,0.39424]
[1759747128544,0.7528,4563.9,4563.8,41.19424]
[1759747130044,0.7528,4563.9,4563.8,40.8]
[1759747132541,1.24524565,4563.9,4563.8,40.8]
[1759747143757,1.46424565,4563.9,4563.8,40.8]
[1759747146055,1.25834565,4563.9,4563.8,40.8]
[1759747147361,1.04894565,4563.9,4563.8,40.8]
[1759747147561,0.1325,4564.0,4563.9,0.39424]
[1759747147753,0.3515,4564.0,4563.9,0.39424]
[1759747147958,0.689,4564.0,4563.9,0.39424]
[1759747149363,0.689,4564.0,4563.9,41.19424]
[1759747149757,0.689,4564.0,4563.9,41.19344]
[1759747150157,0.689,4564.0,4563.9,40.8]
[1759747150367,3.8968,4564.0,4563.9,40.8]
[1759747151256,0.5478,4563.5,4563.4,0.00242801]
[1759747151458,1.1043,4563.5,4563.4,0.00242801]
[1759747151659,1.1043,4563.5,4563.4,40.80242801]
[1759747152965,0.8984,4563.5,4563.4,40.80242801]
[1759747153871,0.689,4563.5,4563.4,40.80242801]
[1759747154761,4.29107,4563.5,4563.4,40.80242801]
[1759747154962,7.60192033,4563.5,4563.4,0.00242801]
[1759747159571,8.09418005,4563.5,4563.4,0.00242801]
[1759747167384,8.09418005,4563.5,4562.9,0.02191613]
[1759747167385,1.29061,4563.0,4562.9,0.02191613]
[1759747167698,8.07905317,4563.0,4562.9,0.02191613]
[1759747168383,8.08132627,4563.0,4562.9,0.02402253]
[1759747169577,0.72487,4562.4,4562.3,40.8]
[1759747169781,4.15167,4562.4,4562.3,40.8]
[1759747169983,7.04384884,4562.4,4562.3,40.8]
[1759747170678,7.04384884,4562.4,4562.3,40.80182256]
[1759747171683,6.64947884,4562.4,4562.3,40.80182256]
[1759747174286,6.64947884,4562.4,4562.3,0.00182256]
[1759747174287,7.08277884,4562.4,4562.3,0.00182256]